{"text_format":"1","workbook":"xlsx","n_sheets":5,"sheets":["Data Input","U.S. Office Employment","Business Summary","Executive Summary","Gap Analysis"],"not_rendered":{"charts":0,"images":2,"macros":1,"external_links":0,"defined_names":2,"comments":0,"pivot_tables":0},"unopened":[],"bounds":{"document_bytes":16777216,"sheet_cells":100000,"rows_first":2000,"rows_last":500,"rows_between":2000,"halvings":0,"cell_chars":16384,"cell_head_chars":4096},"cells_cut":0,"cells_raw":0,"read":"whole","date_system":"1900"}

{"sheet":"Data Input","index":0,"n_rows":19,"n_cols":8,"rows_kept":19,"cut":false,"hidden":false,"merged":[[5,1,5,2]]}
[]
[]
[null,"CCIM Office Gap Analysis",null,null,null,null,null,{"$f":"NOW()","v":"2024-12-17T10:11:58.410"}]
[]
[null,"Market Area",null,null,"Market Area Employment Sector","% Office Using",null,"# Office Employees"]
[null,null,null,null,{"$f":"'U.S. Office Employment'!A288","v":"Wholesale trade"},{"$f":"'U.S. Office Employment'!F288","v":0.10766570791455257},null,{"$f":"'Business Summary'!D22*F6","v":0}]
[null,null,null,null,{"$f":"'U.S. Office Employment'!A348","v":"Retail trade"},{"$f":"'U.S. Office Employment'!F348","v":3.3008740990645609E-2},null,{"$f":"'Business Summary'!D26*F7","v":0}]
[null,"Market Area Supply Data",null,null,{"$f":"'U.S. Office Employment'!A423","v":"Transportation and warehousing"},{"$f":"'U.S. Office Employment'!F423","v":0.17850780518735471},null,{"$f":"'Business Summary'!D37*F8","v":0}]
[null,"Current Total Supply (RSF)",null,null,{"$f":"'U.S. Office Employment'!A472","v":"Information"},{"$f":"'U.S. Office Employment'!F472","v":0.91217688422303655},null,{"$f":"'Business Summary'!D39*F9","v":0}]
[null,"Current Overall Vacancy Supply (RSF)",null,null,{"$f":"'U.S. Office Employment'!A501","v":"Finance and insurance"},{"$f":"'U.S. Office Employment'!F501","v":1},null,{"$f":"'Business Summary'!D40*F10","v":0}]
[null,"New Supply in Construction Pipeline (RSF)",null,null,{"$f":"'U.S. Office Employment'!A539","v":"Real estate and rental and leasing"},{"$f":"'U.S. Office Employment'!F539","v":0.84484282530166765},null,{"$f":"'Business Summary'!D44*F11","v":0}]
[null,"Stabilized Vacancy Rate %",null,null,{"$f":"'U.S. Office Employment'!A565","v":"Professional and business services"},{"$f":"'U.S. Office Employment'!F565","v":0.9434973706930383},null,{"$f":"'Business Summary'!D45*F12","v":0}]
[null,null,null,null,{"$f":"'U.S. Office Employment'!A616","v":"Management of companies and enterprises"},{"$f":"'U.S. Office Employment'!F616","v":1.0004287328994037},null,{"$f":"'Business Summary'!D47*F13","v":0}]
[null,"Market Area Forecast Data",null,null,{"$f":"'U.S. Office Employment'!A620","v":"Administrative and support services"},{"$f":"'U.S. Office Employment'!F619","v":0.62798576268279094},null,{"$f":"'Business Summary'!D48*F14","v":0}]
[null,"Forecast Period (Months)",null,null,{"$f":"'U.S. Office Employment'!A666","v":"Private educational services"},{"$f":"'U.S. Office Employment'!F666","v":0.10655569256062473},null,{"$f":"'Business Summary'!D49*F15","v":0}]
[null,"Economic Base Multiplier",null,null,{"$f":"'U.S. Office Employment'!A678","v":"Health care and social assistance"},{"$f":"'U.S. Office Employment'!F678","v":0.2435441234038998},null,{"$f":"'Business Summary'!D53*F16","v":0}]
[null,"Forecast Annual Employment Growth Rate",{"$f":"'Executive Summary'!C17","v":0},null,{"$f":"'U.S. Office Employment'!A779","v":"Other services"},{"$f":"'U.S. Office Employment'!F779","v":0.48611134563752723},null,{"$f":"'Business Summary'!D62*F17","v":0}]
[null,"Forecast Basic Employment Change",{"$f":"('Business Summary'!D112*(1+C17)^(C15/12)*(1/C16))-('Business Summary'!D112*(1/C16))","v":{"$error":"#DIV/0!"}},null,{"$f":"'U.S. Office Employment'!A828","v":"Government"},{"$f":"'U.S. Office Employment'!F828","v":0.33183697830072045},null,{"$f":"'Business Summary'!D67*F18","v":0}]
[null,"Forecast Total Office Using Employment",{"$f":"F19*((C18*C16))+H19","v":{"$error":"#DIV/0!"}},null,"Current Total Office Using Employment",{"$f":"H19/'Business Summary'!D112","v":0},null,{"$f":"SUM(H6:H18)","v":0}]

{"sheet":"U.S. Office Employment","index":1,"n_rows":848,"n_cols":6,"rows_kept":848,"cut":false,"hidden":true,"merged":[[498,0,498,2],[563,0,563,2],[663,0,663,2],[731,0,731,2],[777,0,777,2],[826,0,826,2],[284,0,284,2],[286,0,286,2],[346,0,346,2],[421,0,421,2],[459,0,459,2],[470,0,470,2],[20,0,20,2],[65,0,65,2],[67,0,67,2],[200,0,200,2],[280,0,280,2],[282,0,282,2]]}
["Office Using Employment Estimate (updated October 2024)"]
["Industry","NAICS Code","Total Employment (x1,000)","Office Using? \"X\"=Yes","# of Office Workers","% of Office Workers"]
["Mining and logging",null,638,null,{"$f":"IF(D3=\"x\",C3,0)","v":0}]
["Logging",1133,38.200000000000003,null,0]
["Mining, quarrying, and oil and gas extraction",21,599.29999999999995,null,0]
["Oil and gas extraction",211,119.6,null,0]
["Mining (except oil and gas)",212,189.3,null,0]
["Coal mining",2121,42.8,null,0]
["Surface coal mining(1)",212114,18.600000000000001,null,0]
["Underground coal mining(1)",212115,24.2,null,0]
["Metal ore mining",2122,43.6,null,0]
["Nonmetallic mineral mining and quarrying",2123,102.9,null,0]
["Stone mining and quarrying(1)",21231,45.6,null,0]
["Crushed and broken limestone mining and quarrying(1)",212312,23.5,null,0]
["Dimension stone, crushed and broken granite, and other crushed and broken stone mining and quarrying(1)","212311,3,9",22,null,0]
["Sand, gravel, clay, and ceramic and refractory minerals mining and quarrying(1)",21232,44.3,null,0]
["Construction sand and gravel mining(1)",212321,29.4,null,0]
["Other nonmetallic mineral mining and quarrying(1)",21239,13,null,0]
["Support activities for mining",213,290.39999999999998,null,0]
["Support activities for oil and gas operations(1)",213112,228.8,null,0]
[null,null,null,null,0]
["Construction",23,8303,null,0]
["Construction of buildings",236,1883.8,null,0]
["Residential building construction",2361,956.2,null,0]
["New single-family housing construction (except for-sale builders)",236115,389,null,0]
["New multifamily housing construction (except for-sale builders)",236116,48.1,null,0]
["New housing for-sale builders",236117,55.5,null,0]
["Residential remodelers",236118,463.7,null,0]
["Nonresidential building construction",2362,927.6,null,0]
["Industrial building construction",23621,170.8,null,0]
["Commercial and institutional building construction",23622,756.8,null,0]
["Heavy and civil engineering construction",237,1159.8,null,0]
["Utility system construction(1)",2371,596.9,null,0]
["Water and sewer line and related structures construction(1)",23711,208.5,null,0]
["Oil and gas pipeline and related structures construction(1)",23712,149.30000000000001,null,0]
["Power and communication line and related structures construction(1)",23713,239.1,null,0]
["Land subdivision(1)",2372,40.1,null,0]
["Highway, street, and bridge construction(1)",2373,386.2,null,0]
["Other heavy and civil engineering construction(1)",2379,135.19999999999999,null,0]
["Specialty trade contractors",238,5259.4,null,0]
["Residential specialty trade contractors","part 238",2414.5,null,0]
["Nonresidential specialty trade contractors","part 238",2844.9,null,0]
["Foundation, structure, and building exterior contractors(1)",2381,999.8,null,0]
["Poured concrete foundation and structure contractors",23811,249.3,null,0]
["Structural steel and precast concrete contractors",23812,81.900000000000006,null,0]
["Framing contractors",23813,81.3,null,0]
["Masonry contractors",23814,152.5,null,0]
["Glass and glazing contractors",23815,74,null,0]
["Roofing contractors",23816,255.9,null,0]
["Siding contractors",23817,41,null,0]
["Other foundation, structure, and building exterior contractors",23819,64.599999999999994,null,0]
["Building equipment contractors(1)",2382,2593.3000000000002,null,0]
["Electrical contractors and other wiring installation contractors",23821,1115.5999999999999,null,0]
["Plumbing, heating, and air-conditioning contractors",23822,1316,null,0]
["Other building equipment contractors",23829,161.5,null,0]
["Building finishing contractors(1)",2383,841.4,null,0]
["Drywall and insulation contractors",23831,244,null,0]
["Painting and wall covering contractors",23832,210.7,null,0]
["Flooring contractors",23833,78.7,null,0]
["Tile and terrazzo contractors",23834,49.8,null,0]
["Finish carpentry contractors",23835,167.6,null,{"$f":"IF(D61=\"x\",C61,0)","v":0}]
["Other building finishing contractors",23839,89.7,null,0]
["Other specialty trade contractors(1)",2389,824.9,null,0]
["Site preparation contractors",23891,414.2,null,0]
["All other specialty trade contractors",23899,411.2,null,0]
[null,null,null,null,0]
["Manufacturing",null,12865,null,0]
[null,null,null,null,0]
["Durable goods",null,8052,null,0]
["Wood product manufacturing",321,412.8,null,0]
["Sawmills and wood preservation(1)",3211,87.5,null,0]
["Veneer, plywood, and engineered wood product manufacturing(1)",3212,81,null,0]
["Other wood product manufacturing(1)",3219,244,null,0]
["Millwork(1)",32191,101.9,null,0]
["Wood window and door manufacturing(1)",321911,56.5,null,0]
["Cut stock, resawing lumber, planing, and other millwork (including flooring)(1)","321912,8",45.4,null,0]
["Wood container and pallet manufacturing(1)",32192,64.7,null,0]
["All other wood product manufacturing(1)",32199,77.2,null,0]
["Nonmetallic mineral product manufacturing",327,428.2,null,0]
["Clay product and refractory manufacturing(1)",3271,35.5,null,0]
["Glass and glass product manufacturing(1)",3272,78.2,null,0]
["Cement and concrete product manufacturing(1)",3273,209.5,null,0]
["Ready-mix concrete manufacturing(1)",32732,107.5,null,0]
["Cement and concrete pipe, brick, block, and other concrete product manufacturing(1)","32731,3,9",102.1,null,0]
["Lime, gypsum, and other nonmetallic mineral product manufacturing(1)","3274,9",105.1,null,0]
["Primary metal manufacturing",331,371,null,0]
["Iron and steel mills and ferroalloy manufacturing(1)",3311,79.599999999999994,null,0]
["Steel product manufacturing from purchased steel(1)",3312,59.7,null,0]
["Alumina, aluminum, and other nonferrous metal production and processing(1)","3313,4",123.2,null,0]
["Foundries(1)",3315,108.8,null,0]
["Ferrous metal foundries(1)",33151,54.5,null,0]
["Nonferrous metal foundries(1)",33152,54,null,0]
["Fabricated metal product manufacturing",332,1456.3,null,0]
["Forging and stamping(1)",3321,89.5,null,0]
["Architectural and structural metals manufacturing(1)",3323,425.3,null,0]
["Plate work and fabricated structural product manufacturing(1)",33231,195,null,0]
["Fabricated structural metal manufacturing(1)",332312,104.6,null,0]
["Plate work and prefabricated metal building and component manufacturing(1)","332311,3",90.5,null,0]
["Ornamental and architectural metal products manufacturing(1)",33232,230.9,null,0]
["Metal window and door manufacturing(1)",332321,68.7,null,0]
["Sheet metal work manufacturing(1)",332322,119,null,0]
["Ornamental and architectural metal work manufacturing(1)",332323,43.1,null,0]
["Boiler, tank, and shipping container manufacturing(1)",3324,98,null,0]
["Hardware, spring, and wire product manufacturing(1)","3325,6",63.5,null,0]
["Machine shops; turned product; and screw, nut, and bolt manufacturing(1)",3327,331.7,null,0]
["Machine shops(1)",33271,258.3,null,0]
["Turned product and screw, nut, and bolt manufacturing(1)",33272,73.3,null,0]
["Coating, engraving, heat treating, and allied activities(1)",3328,128.9,null,0]
["Metal heat treating, coating, engraving (except jewelry and silverware), and allied services to manufacturers(1)","332811,2",76.2,null,0]
["Electroplating, plating, polishing, anodizing, and coloring(1)",332813,52.9,null,0]
["Cutlery, handtool, and other fabricated metal product manufacturing(1)",3329,318.89999999999998,null,0]
["Metal valve manufacturing(1)",33291,91.6,null,0]
["Fluid power valve and hose fitting manufacturing(1)",332912,38,null,0]
["Industrial valve, plumbing fixture fitting and trim, and other metal valve and pipe fitting manufacturing(1)","332911,3,9",53.5,null,0]
["Cutlery, handtool, and all other fabricated metal product manufacturing(1)",33299,227.5,null,0]
["Small arms, ammunition, and other ordnance and ordnance accessories manufacturing(1)","332992,3,4",54.7,null,0]
["Cutlery, handtool, ball and roller bearing, fabricated pipe, pipe fitting, and all other fabricated metal product manufacturing(1)","332200;991,9",172.9,null,0]
["Machinery manufacturing",333,1132,null,0]
["Agriculture, construction, and mining machinery manufacturing(1)",3331,217.2,null,0]
["Agricultural implement manufacturing(1)",33311,84,null,0]
["Construction machinery manufacturing(1)",33312,74.3,null,0]
["Mining and oil and gas field machinery manufacturing(1)",33313,59.2,null,0]
["Industrial machinery manufacturing(1)",3332,133.4,null,0]
["All other industrial machinery manufacturing(1)",333248,70.900000000000006,null,0]
["Commercial and service industry machinery manufacturing(1)",3333,92.2,null,{"$f":"IF(D125=\"x\",C125,0)","v":0}]
["Ventilation, heating, air-conditioning, and commercial refrigeration equipment manufacturing(1)",3334,156.6,null,0]
["Air-conditioning and warm air heating equipment and commercial and industrial refrigeration equipment manufacturing(1)",333415,101.6,null,0]
["Metalworking machinery manufacturing(1)",3335,157.5,null,0]
["Special die and tool, die set, jig, and fixture manufacturing(1)",333514,51.9,null,0]
["Machine tool manufacturing(1)",333517,41.8,null,0]
["Industrial mold, cutting tool and machine tool accessory, rolling mill, and other metalworking machinery manufacturing(1)","333511,5,9",63.9,null,0]
["Engine, turbine, and power transmission equipment manufacturing(1)",3336,93.4,null,0]
["Other general purpose machinery manufacturing(1)",3339,280.89999999999998,null,0]
["Pump and compressor manufacturing(1)",33391,48.7,null,0]
["Material handling equipment manufacturing(1)",33392,95.1,null,0]
["All other general purpose machinery manufacturing(1)",33399,136.9,null,0]
["Computer and electronic product manufacturing",334,1093.2,null,0]
["Computer and peripheral equipment manufacturing",3341,159.5,null,0]
["Communications equipment manufacturing",3342,84.4,null,0]
["Radio and television broadcasting and wireless communications equipment manufacturing(1)",33422,50.7,null,0]
["Semiconductor and other electronic component manufacturing",3344,387.6,null,0]
["Bare printed circuit board manufacturing(1)",334412,27,null,0]
["Semiconductor and related device manufacturing(1)",334413,194.2,null,0]
["Printed electronic circuit assembly manufacturing(1)",334418,61.4,null,0]
["Capacitor, resistor, coil, transformer, other inductor, electronic connector, and other electronic component manufacturing(1)","334416,7,9",104.8,null,0]
["Navigational, measuring, electromedical, and control instruments manufacturing",3345,430.9,null,0]
["Electromedical and electrotherapeutic apparatus manufacturing(1)",334510,74.400000000000006,null,0]
["Search, detection, navigation, guidance, aeronautical, and nautical system and instrument manufacturing(1)",334511,132.19999999999999,null,0]
["Instruments and related products manufacturing for measuring, displaying, and controlling industrial process variables(1)",334513,57.9,null,0]
["Instrument manufacturing for measuring and testing electricity and electrical signals(1)",334515,37,null,0]
["Miscellaneous electronic instruments manufacturing(1)","334512,4,6-9",128.9,null,0]
["Manufacturing and reproducing magnetic and optical media and audio and video equipment manufacturing","3343,6",30.7,null,0]
["Electrical equipment, appliance, and component manufacturing",335,403.4,null,0]
["Electric lighting equipment manufacturing(1)",3351,34.299999999999997,null,0]
["Household appliance manufacturing(1)",3352,61.3,null,0]
["Electrical equipment manufacturing(1)",3353,147.69999999999999,null,0]
["Power, distribution, and specialty transformer manufacturing(1)",335311,32.299999999999997,null,0]
["Motor, generator, switchgear and switchboard apparatus, and relay and industrial control manufacturing(1)","335312,3,4",115.2,null,0]
["Other electrical equipment and component manufacturing(1)",3359,160,null,0]
["Battery manufacturing(1)",33591,50.3,null,0]
["Wiring device manufacturing(1)",33593,40.4,null,0]
["Communication and energy wire and cable and all other electrical equipment and component manufacturing(1)","33592,9",69.400000000000006,null,0]
["Transportation equipment manufacturing",336,1796.6,null,0]
["Motor vehicles and parts(1)(2)","3361,2,3",1059.5,null,0]
["Motor vehicle manufacturing(1)",3361,312,null,0]
["Motor vehicle body and trailer manufacturing(1)",3362,175.5,null,0]
["Motor vehicle parts manufacturing(1)",3363,574.4,null,0]
["Motor vehicle gasoline engine and engine parts manufacturing(1)",33631,57.6,null,0]
["Motor vehicle electrical and electronic equipment manufacturing(1)",33632,60,null,0]
["Motor vehicle steering and suspension components, except spring, manufacturing(1)",33633,33.299999999999997,null,0]
["Motor vehicle transmission and power train parts manufacturing(1)",33635,85.4,null,0]
["Motor vehicle metal stamping(1)",33637,85.2,null,0]
["Motor vehicle brake system, seating, interior trim, and other motor vehicle parts manufacturing(1)","33634,6,9",253.6,null,0]
["Aerospace product and parts manufacturing(1)",3364,519.29999999999995,null,0]
["Aircraft manufacturing(1)",336411,216.9,null,0]
["Aircraft engine and engine parts manufacturing(1)",336412,90.6,null,0]
["Other aircraft parts and auxiliary equipment manufacturing(1)",336413,103.9,null,0]
["Guided missile; space vehicle; and guided missile and space vehicle propulsion unit, parts, and auxiliary equipment manufacturing(1)","336414,5,9",107.5,null,0]
["Ship and boat building(1)",3366,151.19999999999999,null,0]
["Ship building and repairing(1)",336611,109.2,null,0]
["Boat building(1)",336612,42,null,0]
["Railroad rolling stock and other transportation equipment manufacturing(1)","3365,9",67.900000000000006,null,0]
["Furniture and related product manufacturing",337,339.6,null,0]
["Household and institutional furniture and kitchen cabinet manufacturing(1)",3371,217.9,null,0]
["Wood kitchen cabinet and countertop manufacturing(1)",33711,116.6,null,0]
["Household and institutional furniture manufacturing(1)",33712,101.6,null,0]
["Upholstered household furniture manufacturing(1)",337121,44.7,null,0]
["Nonupholstered household furniture and institutional furniture manufacturing(1)","337122,6,7",56.8,null,0]
["Office furniture (including fixtures) and other furniture related product manufacturing(1)",3372,121,null,{"$f":"IF(D189=\"x\",C189,0)","v":0}]
["Office furniture and custom architectural woodwork and millwork manufacturing(1)","337211,2,4",60,null,0]
["Showcase, partition, shelving, locker, and other furniture related product manufacturing(1)",337215,61.1,null,0]
["Miscellaneous manufacturing",339,618.79999999999995,null,0]
["Medical equipment and supplies manufacturing(1)",3391,330.4,null,0]
["Surgical and medical instrument manufacturing(1)",339112,143.9,null,0]
["Surgical appliance and supplies manufacturing(1)",339113,104.5,null,0]
["Dental laboratories(1)",339116,41.7,null,0]
["Other miscellaneous manufacturing(1)",3399,288.60000000000002,null,0]
["Jewelry, silverware, and sporting and athletic goods manufacturing(1)","33991,2",65.5,null,0]
["Sign manufacturing(1)",33995,76.2,null,0]
["Doll, toy, game, office supplies (except paper), and all other miscellaneous manufacturing(1)","33993,4,9",147.5,null,0]
[null,null,null,null,0]
["Nondurable goods",null,4813,null,0]
["Food manufacturing",311,1742.8,null,0]
["Animal food manufacturing(1)",3111,75.5,null,0]
["Grain and oilseed milling(1)",3112,65.099999999999994,null,0]
["Flour milling, malt, starch, and vegetable fats and oils manufacturing(1)","31121,2",52.3,null,0]
["Breakfast cereal manufacturing(1)",31123,13,null,0]
["Sugar and confectionery product manufacturing(1)",3113,79.2,null,0]
["Chocolate and confectionery manufacturing(1)",31135,40.9,null,0]
["Fruit and vegetable preserving and specialty food manufacturing(1)",3114,165.6,null,0]
["Frozen food manufacturing(1)",31141,93.3,null,0]
["Frozen fruit, juice, and vegetable manufacturing(1)",311411,31.8,null,0]
["Frozen specialty food manufacturing(1)",311412,61.2,null,0]
["Fruit and vegetable canning, pickling, and drying(1)",31142,72.8,null,0]
["Dairy product manufacturing(1)",3115,168,null,0]
["Fluid milk manufacturing(1)",311511,55.8,null,0]
["Animal slaughtering and processing(1)",3116,555.20000000000005,null,0]
["Animal, except poultry, slaughtering(1)",311611,147.6,null,0]
["Meat processed from carcasses, rendering, and meat byproduct processing(1)","311612,3",161.6,null,0]
["Poultry processing(1)",311615,245.5,null,0]
["Seafood product preparation and packaging(1)",3117,24.5,null,0]
["Bakeries and tortilla manufacturing(1)",3118,354.7,null,0]
["Bread and bakery product manufacturing(1)",31181,272.3,null,0]
["Retail bakeries(1)",311811,108,null,0]
["Commercial bakeries and frozen cakes, pies, and other pastries manufacturing(1)","311812,3",164.7,null,0]
["Cookie, cracker, pasta, and tortilla manufacturing(1)","31182,3",81.8,null,0]
["Other food manufacturing(1)",3119,255.1,null,0]
["Snack food manufacturing(1)",31191,64.7,null,0]
["Coffee, tea, flavoring syrup and concentrate, seasoning, dressing, and other food manufacturing(1)","31192,3,4,9",190.4,null,0]
["Textile mills",313,89.1,null,0]
["Fabric mills(1)",3132,41,null,0]
["Textile product mills",314,95.4,null,0]
["Textile furnishings mills(1)",3141,37.200000000000003,null,0]
["Other textile product mills(1)",3149,58,null,0]
["Textile bag and canvas mills(1)",31491,21.7,null,0]
["All other textile product mills(1)",31499,36.200000000000003,null,0]
["Apparel manufacturing",315,83.3,null,0]
["Cut and sew apparel manufacturing (except contractors)(1)",31525,44.6,null,0]
["Paper manufacturing",322,349.9,null,0]
["Pulp, paper, and paperboard mills(1)",3221,84.4,null,0]
["Converted paper product manufacturing(1)",3222,265.39999999999998,null,0]
["Paperboard container manufacturing(1)",32221,156.19999999999999,null,0]
["Paper bag and coated and treated paper manufacturing(1)",32222,53.4,null,0]
["Stationery and other converted paper products(1)","32223,9",56,null,0]
["Printing and related support activities",323,359.7,null,0]
["Commercial and book printing (except screen)(1)","323111,7",270.5,null,0]
["Petroleum and coal products manufacturing",324,107.3,null,0]
["Petroleum refineries(1)",32411,61.5,null,0]
["Asphalt paving, roofing, saturated materials, and other petroleum and coal products manufacturing(1)","32412,9",45.8,null,0]
["Chemical manufacturing",325,901.8,null,0]
["Basic chemical manufacturing(1)",3251,159.19999999999999,null,0]
["Petrochemical, industrial gas, synthetic dye, pigment, and other basic inorganic chemical manufacturing(1)","32511,2,3,8",98.8,null,0]
["Other basic organic chemical manufacturing(1)",32519,60.5,null,{"$f":"IF(D253=\"x\",C253,0)","v":0}]
["Resin, synthetic rubber, and artificial and synthetic fibers and filaments manufacturing(1)",3252,95.5,null,0]
["Plastics material and resin manufacturing(1)",325211,61.6,null,0]
["Pesticide, fertilizer, and other agricultural chemical manufacturing(1)",3253,40.6,null,0]
["Pharmaceutical and medicine manufacturing(1)",3254,343.9,null,0]
["Pharmaceutical preparation manufacturing(1)",325412,229.7,null,0]
["Medicinal, botanical, in-vitro diagnostic substance, and biological product manufacturing(1)","325411,3,4",114.2,null,0]
["Paint, coating, and adhesive manufacturing(1)",3255,62.2,null,0]
["Soap, cleaning compound, and toilet preparation manufacturing(1)",3256,118.7,null,0]
["Soap and cleaning compound manufacturing(1)",32561,60.6,null,0]
["Toilet preparation manufacturing(1)",32562,57.8,null,0]
["Other chemical product and preparation manufacturing(1)",3259,80.8,null,0]
["Plastics and rubber products manufacturing",326,718.2,null,0]
["Plastics product manufacturing(1)",3261,587.70000000000005,null,0]
["Plastics packaging materials and unlaminated film and sheet manufacturing(1)",32611,99.1,null,0]
["Plastics pipe, pipe fitting, and unlaminated profile shape manufacturing(1)",32612,53.1,null,0]
["Polystyrene, urethane, and other foam product manufacturing(1)","32614,5",64.400000000000006,null,0]
["Laminated plastics plate, sheet (except packaging), shape, and plastics bottle manufacturing(1)","32613,6",54.6,null,0]
["Other plastics product manufacturing(1)",32619,316.3,null,0]
["Rubber product manufacturing(1)",3262,130.5,null,0]
["Tire manufacturing(1)",32621,55.9,null,0]
["Rubber and plastics hoses, belting, and other rubber product manufacturing(1)","32622,9",74.400000000000006,null,0]
["Beverage, tobacco, and leather and allied product manufacturing","312,6",365.6,null,0]
["Beverage manufacturing(1)",3121,330.2,null,0]
["Soft drinks and ice(1)",31211,108.9,null,0]
["Soft drinks(1)",312111,81.400000000000006,null,0]
["Breweries, wineries, and distilleries(1)","31212,3,4",220.6,null,0]
["Other miscellaneous nondurable goods manufacturing(1)","3122,60",35.6,null,0]
[null,null,null,null,0]
["Service-providing",null,137255,null,0]
[null,null,null,null,0]
["Private service-providing",null,113798,null,0]
[null,null,null,null,0]
["Trade, transportation, and utilities",null,29055,null,0]
[null,null,null,null,0]
["Wholesale trade",42,6188.6,null,0,{"$f":"SUM(E288:E346)/C288","v":0.10766570791455257}]
["Merchant wholesalers, durable goods",423,3455.1,null,0]
["Motor vehicle and motor vehicle parts and supplies merchant wholesalers(1)",4231,382.7,null,0]
["Automobile and other motor vehicle merchant wholesalers(1)",42311,140.4,null,0]
["Motor vehicle supplies and new parts merchant wholesalers(1)",42312,183.8,null,0]
["Furniture and home furnishing merchant wholesalers(1)",4232,108.6,null,0]
["Furniture merchant wholesalers(1)",42321,51,null,0]
["Home furnishing merchant wholesalers(1)",42322,57.8,null,0]
["Lumber and other construction materials merchant wholesalers(1)",4233,273.7,null,0]
["Lumber, plywood, millwork, and wood panel merchant wholesalers(1)",42331,120.3,null,0]
["Brick, stone, and related construction material merchant wholesalers(1)",42332,70.5,null,0]
["Roofing, siding, insulation, and other construction material merchant wholesalers(1)","42333,9",83.5,null,0]
["Professional and commercial equipment and supplies merchant wholesalers(1)",4234,764,null,0]
["Office equipment merchant wholesalers(1)",42342,67.599999999999994,null,0]
["Computer and computer peripheral equipment and software merchant wholesalers(1)",42343,242.1,null,0]
["Medical, dental, and hospital equipment and supplies merchant wholesalers(1)",42345,320.5,null,0]
["Ophthalmic goods and photographic, commercial, and professional equipment and supplies merchant wholesalers(1)","42341,4,6,9",133.1,null,0]
["Metal and mineral (except petroleum) merchant wholesalers(1)",4235,140.30000000000001,null,0]
["Household appliances and electrical and electronic goods merchant wholesalers(1)",4236,372.2,null,0]
["Electrical apparatus and equipment, wiring supplies, and related equipment merchant wholesalers(1)",42361,193.5,null,0]
["Household appliances, electric housewares, consumer electronics, and other electronic parts and equipment merchant wholesalers(1)","42362,9",178.9,null,0]
["Hardware, and plumbing and heating equipment and supplies merchant wholesalers(1)",4237,316.8,null,0]
["Hardware merchant wholesalers(1)",42371,90.1,null,0]
["Plumbing, heating, and hydronics equipment and supplies merchant wholesalers(1)",42372,123,null,0]
["Warm air heating, air-conditioning, and refrigeration equipment and supplies merchant wholesalers(1)","42373,4",104.2,null,0]
["Machinery, equipment, and supplies merchant wholesalers(1)",4238,765.7,null,0]
["Construction and mining (except oil well) machinery and equipment merchant wholesalers(1)",42381,110.2,null,0]
["Farm and garden machinery and equipment merchant wholesalers(1)",42382,113.1,null,0]
["Industrial machinery and equipment merchant wholesalers(1)",42383,343,null,0]
["Industrial supplies merchant wholesalers(1)",42384,105,null,{"$f":"IF(D317=\"x\",C317,0)","v":0}]
["Service establishment equipment and supplies merchant wholesalers(1)",42385,55.3,null,0]
["Transportation equipment and supplies (except motor vehicle) merchant wholesalers(1)",42386,38.799999999999997,null,0]
["Miscellaneous durable goods merchant wholesalers(1)",4239,333,null,0]
["Sporting and recreational goods and supplies merchant wholesalers(1)",42391,69.7,null,0]
["Recyclable material merchant wholesalers(1)",42393,101,null,0]
["Jewelry, watch, precious stone, and precious metal merchant wholesalers(1)",42394,31.8,null,0]
["Toy and hobby goods and supplies and other miscellaneous durable goods merchant wholesalers(1)","42392,9",130.1,null,0]
["Merchant wholesalers, nondurable goods",424,2219.8000000000002,null,0]
["Paper and paper product merchant wholesalers(1)",4241,109.3,null,0]
["Printing and writing paper, stationery, and office supplies merchant wholesalers(1)","42411,2",45.9,null,0]
["Industrial and personal service paper merchant wholesalers(1)",42413,63.3,null,0]
["Drugs and druggists' sundries merchant wholesalers(1)",4242,252.3,null,0]
["Apparel, piece goods, and notions merchant wholesalers(1)",4243,145,null,0]
["Clothing and clothing accessories merchant wholesalers(1)",42435,97.8,null,0]
["Grocery and related product merchant wholesalers(1)",4244,838.3,null,0]
["General line grocery merchant wholesalers(1)",42441,261.8,null,0]
["Fresh fruit and vegetable merchant wholesalers(1)",42448,98.4,null,0]
["Farm product raw material merchant wholesalers(1)",4245,74.3,null,0]
["Grain and field bean merchant wholesalers(1)",42451,39.200000000000003,null,0]
["Chemical and allied products merchant wholesalers(1)",4246,155.1,null,0]
["Petroleum and petroleum products merchant wholesalers(1)",4247,101.6,null,0]
["Beer, wine, and distilled alcoholic beverage merchant wholesalers(1)",4248,217.7,null,0]
["Beer and ale merchant wholesalers(1)",42481,118.3,null,0]
["Wine and distilled alcoholic beverage merchant wholesalers(1)",42482,99.4,null,0]
["Miscellaneous nondurable goods merchant wholesalers(1)",4249,326,null,0]
["Farm supplies merchant wholesalers(1)",42491,120.4,null,0]
["Flower, nursery stock, and florists' supplies merchant wholesalers(1)",42493,53.1,null,0]
["All other nondurable goods merchant wholesalers(1)","42492,4,5,9",152.6,"x",152.6]
["Wholesale trade agents and brokers",425,513.70000000000005,"x",513.70000000000005]
[null,null,null,null,0]
["Retail trade",null,15650.4,null,0,{"$f":"SUM(E348:E421)/C348","v":3.3008740990645609E-2}]
["Motor vehicle and parts dealers",441,2078.1999999999998,null,0]
["Automobile dealers",4411,1306.8,null,0]
["New car dealers(1)",44111,1134.5999999999999,null,0]
["Used car dealers(1)",44112,172,null,0]
["Other motor vehicle dealers",4412,166,null,0]
["Recreational vehicle dealers(1)",44121,52.9,null,0]
["Motorcycle, boat, and other motor vehicle dealers(1)",44122,112.8,null,0]
["Automotive parts, accessories, and tire retailers",4413,605.5,null,0]
["Automotive parts and accessories retailers(1)",44133,407.2,null,0]
["Tire dealers(1)",44134,197.9,null,0]
["Building material and garden equipment and supplies dealers",444,1372,null,0]
["Building material and supplies dealers(1)",4441,1186.7,null,0]
["Hardware retailers(1)",44414,178.7,null,0]
["Home centers, paint, wallpaper, and other building material dealers(1)","44411,2,8",1007,null,0]
["Lawn and garden equipment and supplies retailers(1)",4442,187,null,0]
["Outdoor power equipment retailers(1)",44423,31.9,null,0]
["Nursery, garden center, and farm supply retailers(1)",44424,155.1,null,0]
["Food and beverage retailers",445,3271.4,null,0]
["Grocery and convenience retailers(1)",4451,2868,null,0]
["Supermarkets and other grocery retailers (except convenience retailers)(1)",44511,2650.2,null,0]
["Convenience retailers and vending machine operators(1)",44513,217,null,0]
["Convenience retailers(1)",445131,179.3,null,0]
["Vending machine operators(1)",445132,38.1,null,0]
["Specialty food retailers(1)",4452,226.8,null,0]
["Fruit and vegetable retailers(1)",44523,37.4,null,0]
["Meat, fish, and seafood retailers(1)","44524,5",71.099999999999994,null,0]
["Other specialty food retailers(1)",44529,119.6,null,0]
["Beer, wine, and liquor retailers(1)",4453,177.5,null,0]
["Furniture, home furnishings, electronics, and appliance retailers",449,823.4,null,0]
["Furniture and home furnishings retailers",4491,419.8,null,0]
["Furniture retailers(1)",44911,196.8,null,0]
["Home furnishings retailers(1)",44912,222.7,null,0]
["Floor covering retailers(1)",449121,72.599999999999994,null,{"$f":"IF(D381=\"x\",C381,0)","v":0}]
["Window treatment and all other home furnishings retailers(1)","449122,9",150.6,null,0]
["Electronics and appliance retailers",4492,403.6,null,0]
["General merchandise retailers",455,3283.1,null,0]
["Department stores",4551,967.3,null,0]
["Warehouse clubs, supercenters, and other general merchandise retailers",4552,2315.9,null,0]
["Warehouse clubs and supercenters(1)",455211,1660.9,null,0]
["All other general merchandise retailers(1)",455219,656.5,null,0]
["Health and personal care retailers",456,1092.5999999999999,null,0]
["Pharmacies and drug retailers(1)",45611,708.8,null,0]
["Cosmetics, beauty supplies, and perfume retailers(1)",45612,187.7,null,0]
["Optical goods retailers(1)",45613,71.5,null,0]
["Other health and personal care retailers(1)",45619,124.9,null,0]
["Food (health) supplement retailers(1)",456191,50.5,null,0]
["All other health and personal care retailers(1)",456199,74,null,0]
["Gasoline stations and fuel dealers",457,1079.5,null,0]
["Gasoline stations(1)",4571,1007.5,null,0]
["Gasoline stations with convenience stores(1)",45711,913.4,null,0]
["Other gasoline stations(1)",45712,94.6,null,0]
["Fuel dealers(1)",4572,71.400000000000006,null,0]
["Clothing, clothing accessories, shoe, and jewelry retailers",458,1117.2,null,0]
["Clothing and clothing accessories retailers(1)",4581,829.3,null,0]
["Shoe retailers(1)",4582,165.5,null,0]
["Jewelry, luggage, and leather goods retailers(1)",4583,123.8,null,0]
["Sporting goods, hobby, musical instrument, book, and miscellaneous retailers",459,1533,null,0]
["Sporting goods, hobby, and musical instrument retailers(1)",4591,479.1,null,0]
["Sporting goods retailers(1)",45911,292.2,null,0]
["Hobby, toy, and game retailers(1)",45912,124.2,null,0]
["Sewing, needlework, and piece goods retailers(1)",45913,29.1,null,0]
["Musical instrument and supplies retailers(1)",45914,33.700000000000003,null,0]
["Book retailers and news dealers(1)",4592,72.5,null,0]
["Florists(1)",4593,62.9,null,0]
["Office supplies, stationery, and gift retailers(1)",4594,206,null,0]
["Office supplies and stationery retailers(1)",45941,65.900000000000006,null,0]
["Gift, novelty, and souvenir retailers(1)",45942,140.1,null,0]
["Used merchandise retailers(1)",4595,213.1,null,0]
["Other miscellaneous retailers(1)",4599,500.4,"x",500.4]
["Pet and pet supplies retailers(1)",45991,137.80000000000001,null,0]
["Art dealers(1)",45992,16.2,"x",16.2]
["Manufactured (mobile) home dealers and all other miscellaneous retailers(1)","45993,9",347.3,null,0]
["Tobacco, electronic cigarette, and other smoking supplies retailers(1)",459991,133,null,0]
[null,null,null,null,0]
["Transportation and warehousing",null,6623.8,null,0,{"$f":"SUM(E423:E459)/C423","v":0.17850780518735471}]
["Air transportation",481,574.4,null,0]
["Scheduled air transportation(1)",4811,511.8,null,0]
["Nonscheduled air transportation(1)",4812,62.9,null,0]
["Rail transportation",482,150,null,0]
["Water transportation",483,74,null,0]
["Truck transportation",484,1545.8,null,0]
["General freight trucking(1)",4841,1078.8,null,0]
["General freight trucking, local(1)",48411,301,null,0]
["General freight trucking, long-distance(1)",48412,779,null,0]
["General freight trucking, long-distance, truckload(1)",484121,541.5,null,0]
["General freight trucking, long-distance, less than truckload(1)",484122,237.3,null,0]
["Specialized freight trucking(1)",4842,468.1,null,0]
["Used household and office goods moving(1)",48421,99.9,null,0]
["Specialized freight (except used goods) trucking, local(1)",48422,233.8,null,0]
["Specialized freight (except used goods) trucking, long-distance(1)",48423,134.69999999999999,null,0]
["Transit and ground passenger transportation",485,452.9,null,0]
["Taxi and limousine service(1)",4853,58.1,null,0]
["School and employee bus transportation(1)",4854,209.1,null,0]
["Urban transit systems and interurban, rural, and charter bus transportation(1)","4851,2,5",80.3,null,0]
["Other transit and ground passenger transportation(1)",4859,106.9,null,0]
["Pipeline transportation",486,54.4,null,0]
["Scenic and sightseeing transportation",487,33.6,null,{"$f":"IF(D445=\"x\",C445,0)","v":0}]
["Support activities for transportation",488,859.3,null,0]
["Support activities for air transportation(1)",4881,279.39999999999998,null,0]
["Support activities for water transportation(1)",4883,99.7,null,0]
["Marine cargo handling(1)",48832,65.2,null,0]
["Support activities for road transportation(1)",4884,119.1,null,0]
["Freight transportation arrangement(1)",4885,269.10000000000002,"x",269.10000000000002]
["Other support activities for transportation, including rail(1)","4882,9",90.3,null,0]
["Couriers and messengers",492,1105.8,null,0]
["Couriers and express delivery services(1)",4921,913.3,"x",913.3]
["Local messengers and delivery and private postal service(1)",49111221,198,null,0]
["Warehousing and storage",493,1773.6,null,0]
["General warehousing and storage(1)",49311,1639.2,null,0]
["Refrigerated warehousing and storage(1)",49312,71.599999999999994,null,0]
["Other warehousing and storage, including farm product(1)","49313,9",62,null,0]
[null,null,null,null,0]
["Utilities",22,592,null,0]
["Electric power generation, transmission and distribution(1)",2211,415.2,null,0]
["Electric power generation(1)",22111,159.30000000000001,null,0]
["Fossil fuel electric power generation(1)",221112,78.400000000000006,null,0]
["Hydroelectric and nuclear, solar, wind, geothermal, biomass, and other electric power generation(1)","221111,3-8",81.099999999999994,null,0]
["Electric power transmission, control, and distribution(1)",22112,254.1,null,0]
["Electric bulk power transmission and control(1)",221121,27.7,null,0]
["Electric power distribution(1)",221122,226.5,null,0]
["Natural gas distribution(1)",2212,115.3,null,0]
["Water, sewage, and other systems(1)",2213,63.1,null,0]
[null,null,null,null,0]
["Information",51,2986,null,0,{"$f":"(SUM(E472:E498)-C475-C484-C485-C486)/SUM(E472:E498)","v":0.91217688422303655}]
["Motion picture and sound recording industries",512,443,null,0]
["Motion picture and video production(1)",51211,266.5,"x",266.5]
["Motion picture and video exhibition(1)",51213,119.3,null,0]
["Publishing industries",513,924.6,null,0]
["Newspaper, periodical, book, and directory publishers(1)",5131,267.7,"x",267.7]
["Newspaper publishers(1)",51311,83.9,"x",83.9]
["Periodical publishers(1)",51312,64.599999999999994,"x",64.599999999999994]
["Book publishers(1)",51313,56.4,"x",56.4]
["Directory, mailing list, and other publishers(1)","51314,9",62.2,"x",62.2]
["Software publishers(1)",5132,658.2,"x",658.2]
["Broadcasting and content providers",516,335.6,null,0]
["Radio and television broadcasting stations(1)",5161,117.7,null,0]
["Radio broadcasting stations(1)",51611,51.1,null,0]
["Television broadcasting stations(1)",51612,66.599999999999994,null,0]
["Media streaming distribution services, social networks, and other media networks and content providers(1)",5162,218,"x",218]
["Telecommunications",517,613.29999999999995,null,0]
["Wired and wireless telecommunications (except satellite)(1)",5171,558.20000000000005,"x",558.20000000000005]
["Wired and wireless telecommunications carriers (except satellite)(1)",51711,520.4,"x",520.4]
["Wired telecommunications carriers(1)",517111,438.4,"x",438.4]
["Wireless telecommunications carriers (except satellite)(1)",517112,82.1,"x",82.1]
["Telecommunications resellers(1)",51712,37.5,"x",37.5]
["All other telecommunications(1)","5174,8",55.2,"x",55.2]
["Computing infrastructure providers, data processing, web hosting, and related services",518,492.1,"x",492.1]
["Web search portals, libraries, archives, and other information services",519,177,null,0]
["Libraries and archives(1)",51921,28.3,"x",28.3]
["Web search portals and all other information services(1)",51929,149.1,"x",149.1]
[null,null,null,null,0]
["Financial activities(3)",null,9263,null,0]
["Finance and insurance",52,6751.9,"x",6751.9,{"$f":"SUM(E500:E538)/SUM(E500:E538)","v":1}]
["Monetary authorities-central bank",521,23.2,"x",23.2]
["Credit intermediation and related activities",522,2575.5,"x",2575.5]
["Depository credit intermediation",5221,1774.1,null,0]
["Commercial banking(1)",52211,1361.2,"x",1361.2]
["Credit unions(1)",52213,315.3,"x",315.3]
["Savings institutions and other depository credit intermediation(1)",52218,97.5,"x",97.5]
["Nondepository credit intermediation",5222,524.70000000000005,null,0]
["Credit card issuing(1)",52221,67.900000000000006,"x",{"$f":"IF(D509=\"x\",C509,0)","v":67.900000000000006}]
["Sales financing(1)",52222,85.6,"x",85.6]
["Other nondepository credit intermediation(1)",52229,370.3,"x",370.3]
["Consumer lending(1)",522291,91.1,"x",91.1]
["Real estate credit(1)",522292,186.7,"x",186.7]
["International, secondary market, and all other nondepository credit intermediation(1)",522299,92,"x",92]
["Activities related to credit intermediation",5223,276.8,null,0]
["Mortgage and nonmortgage loan brokers(1)",52231,86.7,"x",86.7]
["Financial transactions processing, reserve, and clearinghouse activities(1)",52232,128.69999999999999,"x",128.69999999999999]
["Other activities related to credit intermediation(1)",52239,61.2,"x",61.2]
["Securities, commodity contracts, funds, trusts, and other financial vehicles, investments, and related activities","523,5",1123.9000000000001,null,0]
["Securities and commodity contracts brokerage, intermediation, and exchanges(1)","5231,2",477.7,"x",477.7]
["Investment banking and securities intermediation(1)",52315,446,"x",446]
["Funds, trusts, and other financial vehicles and investment activities(1)","5239,50",646.6,"x",646.6]
["Miscellaneous intermediation(1)",52391,36.299999999999997,"x",36.299999999999997]
["Portfolio management and investment advice(1)",52394,516.29999999999995,"x",516.29999999999995]
["All other financial investment activities(1)",52399500,93.9,"x",93.9]
["Insurance carriers and related activities",524,3029.3,null,0]
["Insurance carriers(1)",5241,1629.9,"x",1629.9]
["Direct life, health, and medical insurance carriers(1)",52411,916.7,"x",916.7]
["Direct insurance (except life, health, and medical) carriers(1)",52412,682.6,"x",682.6]
["Direct property and casualty insurance carriers(1)",524126,592.5,"x",592.5]
["Direct title insurance and other direct insurance (except life, health, and medical) carriers(1)","524127,8",90,"x",90]
["Reinsurance carriers(1)",52413,31.7,"x",31.7]
["Agencies, brokerages, and other insurance related activities(1)",5242,1398.9,"x",1398.9]
["Insurance agencies and brokerages(1)",52421,1003,"x",1003]
["Other insurance related activities(1)",52429,396.5,"x",396.5]
["Claims adjusting(1)",524291,66.400000000000006,"x",66.400000000000006]
["Pharmacy benefit management and other third party administration of insurance and pension funds(1)",524292,224.8,"x",224.8]
["All other insurance related activities(1)",524298,105.2,"x",105.2]
["Real estate and rental and leasing",53,2511.5,null,0,{"$f":"SUM(E539:E563)/(SUM(C541:C552)+SUM(C554:C562)+C563)","v":0.84484282530166765}]
["Real estate",531,1892.8,null,0]
["Lessors of real estate(1)",5311,638.70000000000005,"x",638.70000000000005]
["Lessors of residential buildings and dwellings(1)",53111,378.2,"x",378.2]
["Lessors of nonresidential buildings (except miniwarehouses)(1)",53112,158,"x",158]
["Lessors of miniwarehouses and self-storage units(1)",53113,61.2,"x",61.2]
["Lessors of other real estate property(1)",53119,41.4,"x",41.4]
["Offices of real estate agents and brokers(1)",5312,399.8,"x",399.8]
["Activities related to real estate(1)",5313,855,"x",855]
["Real estate property managers(1)",53131,732.5,"x",732.5]
["Residential property managers(1)",531311,558.5,"x",558.5]
["Nonresidential property managers(1)",531312,174,"x",174]
["Offices of real estate appraisers(1)",53132,29.1,"x",29.1]
["Other activities related to real estate(1)",53139,93.5,"x",93.5]
["Rental and leasing services",532,594.79999999999995,null,0]
["Automotive equipment rental and leasing(1)",5321,234.8,null,0]
["Passenger car rental and leasing(1)",53211,134.4,null,0]
["Truck, utility trailer, and recreational vehicle (RV) rental and leasing(1)",53212,101,null,0]
["Consumer goods rental(1)",5322,127.9,"x",127.9]
["Home health equipment rental(1)",532283,32.799999999999997,"x",32.799999999999997]
["General rental centers(1)",5323,32.6,null,0]
["Commercial and industrial machinery and equipment rental and leasing(1)",5324,198.5,null,0]
["Construction, transportation, mining, and forestry machinery and equipment rental and leasing(1)",53241,106.2,null,0]
["Office, commercial, and industrial machinery and equipment rental and leasing(1)","53242,9",92.4,"x",92.4]
["Lessors of nonfinancial intangible assets (except copyrighted works)",533,23.9,"x",23.9]
[null,null,null,null,0]
["Professional and business services",null,22928,null,0,{"$f":"(SUM(E565:E615)-C614-C613-C608-C580)/SUM(E565:E615)","v":0.9434973706930383}]
["Professional, scientific, and technical services",54,11034.8,null,0]
["Legal services",5411,1183.5,null,0]
["Offices of lawyers(1)",54111,1088.3,"x",1088.3]
["Other legal services(1)",54119,95,"x",95]
["Accounting, tax preparation, bookkeeping, and payroll services",5412,1171.4000000000001,null,0]
["Offices of certified public accountants(1)",541211,555.79999999999995,"x",555.79999999999995]
["Tax preparation services(1)",541213,99.2,"x",99.2]
["Payroll services(1)",541214,235.6,"x",{"$f":"IF(D573=\"x\",C573,0)","v":235.6}]
["Other accounting services(1)",541219,279.89999999999998,"x",279.89999999999998]
["Architectural, engineering, and related services",5413,1706.9,null,0]
["Architectural services(1)",54131,203,"x",203]
["Landscape architectural services(1)",54132,30.6,"x",30.6]
["Engineering and drafting services(1)","54133,4",1197.7,"x",1197.7]
["Building inspection, surveying, and mapping services(1)","54135,6,7",95.3,"x",95.3]
["Testing laboratories and services(1)",54138,181.4,null,0]
["Specialized design services",5414,154.69999999999999,null,0]
["Interior design services(1)",54141,56.3,"x",56.3]
["Graphic design services(1)",54143,58.8,"x",58.8]
["Computer systems design and related services",5415,2548.3000000000002,null,0]
["Custom computer programming services(1)",541511,1166.0999999999999,"x",1166.0999999999999]
["Computer systems design services(1)",541512,1165.5,"x",1165.5]
["Computer facilities management services(1)",541513,79.2,"x",79.2]
["Other computer related services(1)",541519,135.9,"x",135.9]
["Management, scientific, and technical consulting services",5416,1905.6,null,0]
["Management consulting services(1)",54161,1574.3,"x",1574.3]
["Administrative management and general management consulting services(1)",541611,861.4,"x",861.4]
["Human resources consulting services(1)",541612,95.6,"x",95.6]
["Marketing consulting services(1)",541613,322.7,"x",322.7]
["Process, physical distribution, and logistics consulting services(1)",541614,169.8,"x",169.8]
["Other management consulting services(1)",541618,126.7,"x",126.7]
["Environmental consulting services(1)",54162,107.4,"x",107.4]
["Other scientific and technical consulting services(1)",54169,221.6,"x",221.6]
["Scientific research and development services",5417,960.9,null,0]
["Research and development in the physical, engineering, and life sciences(1)",54171,891.8,"x",891.8]
["Research and development in nanotechnology(1)",541713,29.6,"x",29.6]
["Research and development in biotechnology, except nanobiotechnology(1)",541714,303,"x",303]
["Research and development in the physical, engineering, and life sciences, except nanotechnology and biotechnology(1)",541715,559.79999999999995,"x",559.79999999999995]
["Research and development in the social sciences and humanities(1)",54172,70.099999999999994,"x",70.099999999999994]
["Advertising, public relations, and related services",5418,523.20000000000005,null,0]
["Advertising agencies(1)",54181,237.2,"x",237.2]
["Public relations agencies(1)",54182,71.3,"x",71.3]
["Media buying agencies and media representatives(1)","54183,4",38.200000000000003,"x",38.200000000000003]
["Indoor and outdoor display advertising(1)",54185,31,null,0]
["Direct mail advertising(1)",54186,28.3,"x",28.3]
["Advertising material distribution and other services related to advertising(1)","54187,9",117.3,"x",117.3]
["Other professional, scientific, and technical services",5419,880.2,null,0]
["Marketing research and public opinion polling(1)",54191,68.8,"x",68.8]
["Photographic services(1)",54192,44.9,null,0]
["Veterinary services(1)",54194,462.6,null,0]
["Translation, interpretation, and all other professional, scientific, and technical services(1)","54193,9",303.89999999999998,"x",303.89999999999998]
["Management of companies and enterprises",55,2565.6999999999998,null,0,{"$f":"SUM(E616:E618)/C616","v":1.0004287328994037}]
["Offices of bank and other holding companies(1)","551111,2",106.9,"x",106.9]
["Corporate, subsidiary, and regional managing offices(1)",551114,2459.9,"x",2459.9]
["Administrative and support and waste management and remediation services",56,9327.6,null,0,{"$f":"SUM(E619:E663)/C619","v":0.62798576268279094}]
["Administrative and support services",561,8804.4,null,0]
["Office administrative services",5611,632.1,"x",632.1]
["Facilities support services",5612,184.2,null,0]
["Employment services",5613,3429.7,null,0]
["Employment placement agencies and executive search services(1)",56131,326.10000000000002,"x",326.10000000000002]
["Employment placement agencies(1)",561311,280.5,"x",280.5]
["Executive search services(1)",561312,45.6,"x",45.6]
["Temporary help services(1)",56132,2644.7,"x",2644.7]
["Professional employer organizations(1)",56133,451.8,"x",451.8]
["Business support services",5614,687.3,null,0]
["Document preparation services(1)",56141,35,"x",35]
["Telephone call centers(1)",56142,362.6,"x",362.6]
["Telephone answering services(1)",561421,35.799999999999997,"x",35.799999999999997]
["Telemarketing bureaus and other contact centers(1)",561422,326.60000000000002,"x",326.60000000000002]
["Business service centers(1)",56143,80.400000000000006,"x",80.400000000000006]
["Collection agencies(1)",56144,83.1,"x",83.1]
["Credit bureaus and other business support services(1)","56145,9",127,"x",127]
["Travel arrangement and reservation services",5615,196.7,null,{"$f":"IF(D637=\"x\",C637,0)","v":0}]
["Travel agencies(1)",56151,83.3,"x",83.3]
["Tour operators(1)",56152,23.3,null,0]
["Other travel arrangement and reservation services(1)",56159,90.3,"x",90.3]
["Investigation and security services",5616,1030.0999999999999,null,0]
["Investigation, guard, and armored car services(1)",56161,872,null,0]
["Investigation and personal background check services(1)",561611,41.7,"x",41.7]
["Security guards, patrol services, and armored car services(1)","561612,3",830.3,null,0]
["Security systems services(1)",56162,159.30000000000001,"x",159.30000000000001]
["Services to buildings and dwellings",5617,2304.6999999999998,null,0]
["Exterminating and pest control services(1)",56171,154.19999999999999,null,0]
["Janitorial services(1)",56172,1086.0999999999999,null,0]
["Landscaping services(1)",56173,910.7,null,0]
["Carpet and upholstery cleaning services(1)",56174,38.4,null,0]
["Other services to buildings and dwellings(1)",56179,113.3,null,0]
["Other support services",5619,339.7,null,0]
["Packaging and labeling services(1)",56191,68.599999999999994,null,0]
["Convention and trade show organizers(1)",56192,51.7,"x",51.7]
["All other support services(1)",56199,219.1,null,0]
["Waste management and remediation services",562,523.20000000000005,null,0]
["Waste collection(1)",5621,222,null,0]
["Waste treatment and disposal(1)",5622,108.1,null,0]
["Hazardous waste treatment and disposal(1)",562211,41.2,null,0]
["Solid waste landfill, combustors, and incinerators and other nonhazardous waste treatment and disposal(1)","562212,3,9",66.8,null,0]
["Remediation and other waste management services(1)",5629,193.6,null,0]
["Remediation services(1)",56291,105.2,null,0]
["Materials recovery facilities and other waste management services(1)","56292,9",88.7,null,0]
[null,null,null,null,0]
["Private education and health services",null,26628,null,0]
["Private educational services",61,3892.8,null,0,{"$f":"SUM(E666:E676)/C666","v":0.10655569256062473}]
["Private elementary and secondary schools(1)",6111,1183.5999999999999,null,0]
["Private junior colleges, colleges, universities, and professional schools(1)","6112,3",1759.9,null,0]
["Private business schools and computer and management training(1)",6114,88.4,"x",88.4]
["Private business and secretarial schools and private computer training(1)","61141,2",22.2,"x",22.2]
["Private professional and management development training(1)",61143,66.5,"x",66.5]
["Private technical and trade schools(1)",6115,124.7,null,0]
["Other private schools and instruction(1)",6116,546.4,null,0]
["Private fine arts schools(1)",61161,126.8,null,0]
["Private sports and recreation instruction(1)",61162,181.1,null,0]
["Private language schools and all other private schools and instruction(1)","61163,9",237.7,"x",237.7]
["Private educational support services(1)",6117,191.6,null,0]
["Health care and social assistance",62,22735.1,null,0,{"$f":"SUM(E678:E731)/C678","v":0.2435441234038998}]
["Health care(4)","621,2,3",17867.2,null,0]
["Ambulatory health care services",621,8937.6,null,0]
["Offices of physicians",6211,3059.6,null,0]
["Offices of physicians (except mental health specialists)(1)",621111,2971.3,"x",2971.3]
["Offices of physicians, mental health specialists(1)",621112,89.3,"x",89.3]
["Offices of dentists",6212,1057.3,"x",1057.3]
["Offices of other health practitioners",6213,1229.5,null,0]
["Offices of chiropractors(1)",62131,149.80000000000001,"x",149.80000000000001]
["Offices of optometrists(1)",62132,158.6,"x",158.6]
["Offices of mental health practitioners (except physicians)(1)",62133,237.7,"x",237.7]
["Offices of physical, occupational and speech therapists, and audiologists(1)",62134,488.8,"x",488.8]
["Offices of all other health practitioners(1)",62139,192.1,"x",192.1]
["Offices of podiatrists(1)",621391,33.5,"x",33.5]
["Offices of all other miscellaneous health practitioners(1)",621399,158.6,"x",158.6]
["Outpatient care centers",6214,1093.8,null,0]
["Outpatient mental health and substance abuse centers(1)",62142,312.39999999999998,null,0]
["Other outpatient care centers(1)","62141,9",781.3,null,0]
["HMO medical centers(1)",621491,192.2,null,0]
["Kidney dialysis centers(1)",621492,129.4,null,0]
["Freestanding ambulatory surgical and emergency centers(1)",621493,181.6,null,0]
["Family planning and all other outpatient care centers(1)","621410,98",278.10000000000002,null,0]
["Medical and diagnostic laboratories",6215,318.39999999999998,null,0]
["Medical laboratories(1)",621511,225,null,{"$f":"IF(D701=\"x\",C701,0)","v":0}]
["Diagnostic imaging centers(1)",621512,93.6,null,0]
["Home health care services",6216,1815.4,null,0]
["Other ambulatory health care services",6219,363.5,null,0]
["Ambulance services(1)",62191,172,null,0]
["All other ambulatory health care services(1)",62199,191.3,null,0]
["Blood and organ banks(1)",621991,93,null,0]
["All other miscellaneous ambulatory health care services(1)",621999,98.9,null,0]
["Hospitals",622,5614.3,null,0]
["General medical and surgical hospitals(1)",6221,5135.8,null,0]
["Psychiatric and substance abuse hospitals(1)",6222,169.3,null,0]
["Specialty, except psychiatric and substance abuse, hospitals(1)",6223,309,null,0]
["Nursing and residential care facilities",623,3315.3,null,0]
["Skilled nursing care facilities",6231,1480.8,null,0]
["Residential intellectual and developmental disability, mental health, and substance abuse facilities",6232,676.1,null,0]
["Residential intellectual and developmental disability facilities(1)",62321,406.9,null,0]
["Residential mental health and substance abuse facilities(1)",62322,269.2,null,0]
["Continuing care retirement communities and assisted living facilities for the elderly",6233,991.8,null,0]
["Continuing care retirement communities(1)",623311,486,null,0]
["Assisted living facilities for the elderly(1)",623312,501.9,null,0]
["Other residential care facilities",6239,166.6,null,0]
["Social assistance",624,4867.8999999999996,null,0]
["Individual and family services",6241,3286.7,null,0]
["Child and youth services(1)",62411,229.3,null,0]
["Services for the elderly and persons with disabilities(1)",62412,2536.6,null,0]
["Other individual and family services(1)",62419,520,null,0]
["Community food and housing, and emergency and other relief services",6242,232.7,null,0]
["Community food services(1)",62421,49.8,null,0]
["Community housing, emergency, and relief services(1)","62422,3",183,null,0]
["Vocational rehabilitation services",6243,287.2,null,0]
["Child care services",6244,1061.3,null,0]
[null,null,null,null,0]
["Leisure and hospitality",null,17016,null,0]
["Arts, entertainment, and recreation",71,2671.8,null,0]
["Performing arts, spectator sports, and related industries",711,643.20000000000005,null,0]
["Performing arts companies(1)",7111,139.5,null,0]
["Musical groups and artists(1)",71113,33.799999999999997,null,0]
["Theater, dance, and other performing arts companies and dinner theaters(1)","71111,2,9",105.4,null,0]
["Spectator sports(1)",7112,236.6,null,0]
["Sports teams and clubs(1)",711211,186.7,null,0]
["Racetracks and other spectator sports(1)","711212,9",50.8,null,0]
["Arts and sports promoters and agents and managers for public figures(1)","7113,4",200.2,null,0]
["Independent artists, writers, and performers(1)",7115,64.599999999999994,null,0]
["Museums, historical sites, and similar institutions",712,179.2,null,0]
["Museums(1)",71211,100.9,null,0]
["Historical sites, zoos, botanical gardens, nature parks, and other similar institutions(1)","71212,3,9",77.900000000000006,null,0]
["Amusement, gambling, and recreation industries",713,1849.4,null,0]
["Amusement parks and arcades(1)",7131,227.8,null,0]
["Gambling industries(1)",7132,123.3,null,0]
["Casinos, except casino hotels(1)",71321,69.2,null,0]
["Other gambling industries(1)",71329,54.4,null,0]
["Other amusement and recreation industries(1)",7139,1490.9,null,0]
["Golf courses and country clubs(1)",71391,410,null,0]
["Skiing facilities(1)",71392,67.8,null,0]
["Marinas(1)",71393,37,null,0]
["Fitness and recreational sports centers(1)",71394,658,null,0]
["Bowling centers(1)",71395,72,null,0]
["All other amusement and recreation industries(1)",71399,248.3,null,0]
["Accommodation and food services",72,14344.1,null,0]
["Accommodation",721,1928,null,0]
["Traveler accommodation(1)",7211,1845.5,null,0]
["Hotels (except casino hotels) and motels(1)",72111,1560.5,null,0]
["Casino hotels(1)",72112,248.7,null,0]
["Other traveler accommodation(1)",72119,36.200000000000003,null,0]
["Bed-and-breakfast inns(1)",721191,11.5,null,{"$f":"IF(D765=\"x\",C765,0)","v":0}]
["All other traveler accommodation and rooming and boarding houses, dormitories, and workers' camps(1)",721310199,24.8,null,0]
["Recreational vehicle (RV) parks and recreational camps(1)",7212,82.7,null,0]
["Food services and drinking places",722,12416.1,null,0]
["Special food services(1)",7223,800,null,0]
["Food service contractors(1)",72231,556.70000000000005,null,0]
["Caterers and mobile food services(1)","72232,3",244.1,null,0]
["Drinking places, alcoholic beverages(1)",7224,460.5,null,0]
["Restaurants and other eating places(1)",7225,11146.8,null,0]
["Full-service restaurants(1)",722511,5411.3,null,0]
["Limited-service restaurants(1)",722513,4719.5,null,0]
["Cafeterias, grill buffets, and buffets(1)",722514,74.900000000000006,null,0]
["Snack and nonalcoholic beverage bars(1)",722515,936.8,null,0]
[null,null,null,null,0]
["Other services",81,5922,null,0,{"$f":"SUM(E779:E826)/(C813+C794+C780)","v":0.48611134563752723}]
["Repair and maintenance",811,1479.3,null,0]
["Automotive repair and maintenance(1)",8111,1040.2,null,0]
["Automotive mechanical and electrical repair and maintenance(1)",81111,441.5,null,0]
["General automotive repair(1)",811111,396.7,null,0]
["Specialized automotive repair(1)",811114,45.1,null,0]
["Automotive body, paint, interior, and glass repair(1)",81112,307.3,null,0]
["Automotive body, paint, and interior repair and maintenance(1)",811121,270.60000000000002,null,0]
["Automotive glass replacement shops(1)",811122,36.9,null,0]
["Other automotive repair and maintenance(1)",81119,292,null,0]
["Car washes(1)",811192,192.4,null,0]
["Automotive oil change and lubrication shops and all other automotive repair and maintenance(1)","811191,8",99.5,null,0]
["Electronic and precision equipment repair and maintenance(1)",8112,104,null,0]
["Commercial and industrial machinery and equipment (except automotive and electronic) repair and maintenance(1)",8113,252.4,null,0]
["Personal and household goods repair and maintenance(1)",8114,83.4,null,0]
["Personal and laundry services",812,1564,null,0]
["Personal care services(1)",8121,748.9,null,0]
["Hair, nail, and skin care services(1)",81211,559,null,0]
["Barber shops and beauty salons(1)","812111,2",405.5,null,0]
["Nail salons(1)",812113,152.6,null,0]
["Other personal care services(1)",81219,191.3,null,0]
["Death care services(1)",8122,137.4,null,0]
["Funeral homes and funeral services(1)",81221,104.3,null,0]
["Cemeteries and crematories(1)",81222,33,null,0]
["Drycleaning and laundry services(1)",8123,260.7,null,0]
["Coin-operated laundries and drycleaners(1)",81231,39.1,null,0]
["Drycleaning and laundry services, except coin-operated(1)",81232,88.1,null,0]
["Linen and uniform supply(1)",81233,133.69999999999999,null,0]
["Linen supply(1)",812331,66,null,0]
["Industrial launderers(1)",812332,67.5,null,0]
["Other personal services(1)",8129,414.5,null,0]
["Pet care (except veterinary) services(1)",81291,186.2,null,0]
["Parking lots and garages(1)",81293,130.5,null,0]
["Photofinishing and all other personal services(1)","81292,9",98,null,0]
["Religious, grantmaking, civic, professional, and similar organizations",813,2878.8,"x",2878.8]
["Grantmaking and giving services(1)",8132,204.1,null,0]
["Grantmaking foundations(1)",813211,116.4,null,0]
["Voluntary health organizations(1)",813212,42.5,null,0]
["Other grantmaking and giving services(1)",813219,45.3,null,0]
["Social advocacy organizations(1)",8133,287.5,null,0]
["Human rights organizations(1)",813311,59,null,0]
["Environment, conservation, wildlife, and other social advocacy organizations(1)","813312,9",228.9,null,0]
["Civic and social organizations(1)",8134,363.9,null,0]
["Business, professional, labor, political, and similar organizations(1)",8139,475.6,null,0]
["Business associations(1)",81391,117.4,null,0]
["Professional organizations(1)",81392,84.7,null,0]
["Labor unions and similar labor organizations(1)",81393,105.1,null,0]
["Political and other similar organizations (except business, professional, and labor organizations)(1)","81394,9",168.7,null,0]
[null,null,null,null,{"$f":"IF(D827=\"x\",C827,0)","v":0}]
["Government",null,23457,null,0,{"$f":"SUM(E828:E848)/C828","v":0.33183697830072045}]
["Federal",null,3003,null,0]
["Federal, except U.S. Postal Service",null,2398,null,0]
["Federal hospitals(1)",null,380.7,null,0]
["Department of Defense(1)",null,561.9,null,0]
["U.S. Postal Service(5)",null,604.9,null,0]
["Other Federal government(1)",null,1456.2,"x",1456.2]
["State government",null,5514,null,0]
["State government education",null,2669.7,null,{"$f":"IF(D836=\"x\",C836,0)","v":0}]
["State government, excluding education",null,2843.9,null,0]
["State hospitals(1)",null,465.7,null,0]
["State government general administration(1)",null,1890.5,"x",1890.5]
["Other State government(1)",null,486.8,null,0]
["Local government",null,14940,null,0]
["Local government education",null,8125.6,null,0]
["Local government, excluding education",null,6814.7,null,0]
["Local government utilities(1)",null,259.3,null,0]
["Local government transportation(1)",null,302.7,null,0]
["Local hospitals(1)",null,728.4,null,0]
["Local government general administration(1)",null,4437.2,"x",4437.2]
["Other local government(1)",null,1085.7,null,{"$f":"IF(D848=\"x\",C848,0)","v":0}]

{"sheet":"Business Summary","index":2,"n_rows":118,"n_cols":7,"rows_kept":118,"cut":false,"hidden":false,"merged":[[113,0,113,12],[115,0,115,3],[115,4,115,5],[115,6,115,12],[117,0,117,12],[0,0,0,12],[1,0,1,12],[2,0,2,12],[3,0,3,12]]}
[]
[]
[]
[]
[]
[]
[]
[]
[]
[]
[]
[]
[]
[]
[]
[]
[]
[]
[]
[]
[]
[]
[]
[]
[]
[]
[]
[]
[]
[]
[]
[]
[]
[]
[]
[]
[]
[]
[]
[]
[]
[]
[]
[]
[]
[]
[]
[]
[]
[]
[]
[]
[]
[]
[]
[]
[]
[]
[]
[]
[]
[]
[]
[]
[]
[]
[]
[]
[]
[]
[]
[]
[]
[]
[]
[]
[]
[]
[]
[]
[]
[]
[]
[]
[]
[]
[]
[]
[]
[]
[]
[]
[]
[]
[]
[]
[]
[]
[]
[]
[]
[]
[]
[]
[]
["Other Services",10281,0.23920000000000002,100042,0.21780000000000002]
[]
["Government",397,9.1999999999999998E-3,13016,2.8300000000000002E-2]
[]
["Unclassified Establishments",4493,0.1045,410,2.8300000000000002E-2]
[]
["Totals",42985,"100.0%",459303,"100.0%"]
[]
["Source:  Copyright 2024 Data Axle, Inc. All rights reserved. Esri Total Population forecasts for 2024.\n\n\n"]
[]
["Date Note: Data on the Business Summary report is calculated using \n\n",null,null,null,"Esri’s Data allocation method",null,"which uses census block groups to allocate business summary data to custom areas."]
[]
["©2024 Esri"]

{"sheet":"Executive Summary","index":3,"n_rows":0,"n_cols":0,"rows_kept":0,"cut":false,"hidden":false,"merged":[[0,0,0,4],[1,0,1,4],[2,0,2,4],[3,0,3,4],[7,0,7,4],[104,0,104,4],[106,0,106,4],[64,1,64,2],[69,1,69,2],[74,1,74,2],[80,1,80,2],[99,1,99,2],[9,1,9,2],[31,1,31,2],[43,1,43,2],[56,1,56,2],[59,1,59,2]]}

{"sheet":"Gap Analysis","index":4,"n_rows":25,"n_cols":5,"rows_kept":25,"cut":false,"hidden":false,"merged":[[1,1,1,4],[0,1,0,4]]}
[null,"CCIM Office Gap Analysis"]
[null,{"$f":"'Data Input'!B6:C6","v":0}]
[null,"Forecast Period:",{"$f":"'Data Input'!C15","v":0},"Months"]
[]
[null,"Current Market Conditions",null,null,{"$f":"'Data Input'!H3","v":"2024-12-17T10:11:58.410"}]
[null,"Current Office Employment",null,null,{"$f":"'Data Input'!H19","v":0}]
[null,"Office Space per Employee (RSF)",null,null,{"$f":"E8/E6","v":{"$error":"#DIV/0!"}}]
[null,"Current Office Demand (RSF)",null,null,{"$f":"'Data Input'!C9-'Data Input'!C10","v":0}]
[null,"Current Office Supply (RSF)",null,null,{"$f":"'Data Input'!C9","v":0}]
[null,"Current Office Gap (RSF)",null,null,{"$f":"E8-E9","v":0}]
[null,"Current Occupancy Rate",null,null,{"$f":"1-'Data Input'!C10/'Data Input'!C9","v":{"$error":"#DIV/0!"}}]
[]
[null,"Forecast Market Conditions",null,null,{"$f":"'Data Input'!H3+('Data Input'!C15*30.25)","v":"2024-12-17T10:11:58.410"}]
[null,"Forecast Office Employment",null,null,{"$f":"'Data Input'!C19","v":{"$error":"#DIV/0!"}}]
[null,"Office Space per Employee (RSF)",null,null,{"$f":"E16/E14","v":{"$error":"#DIV/0!"}}]
[null,"Forecast Office Demand (RSF)",null,null,{"$f":"E14*(E8/E6)","v":{"$error":"#DIV/0!"}}]
[null,"Forecast Office Supply (RSF)",null,null,{"$f":"'Data Input'!C9+'Data Input'!C11","v":0}]
[null,"Forecast Office Gap (RSF)",null,null,{"$f":"E16-E17","v":{"$error":"#DIV/0!"}}]
[null,"Forecast Occupancy Rate",null,null,{"$f":"IF(E18<0,1+E18/E17,1)","v":{"$error":"#DIV/0!"}}]
[]
[null,"Forecast Market Stabilization"]
[null,"Targeted Stabilized Occupancy Rate",null,null,{"$f":"1-'Data Input'!C12","v":1}]
[null,"Forecast Annual Absorption (RSF)",null,null,{"$f":"(E16-E8)/('Data Input'!C15/12)","v":{"$error":"#DIV/0!"}}]
[null,"Additional Months to Reach Stabilized Occupancy",null,null,{"$f":"IF(E22>E19,(((E22-E19)*E17)/E23)*12,0)","v":{"$error":"#DIV/0!"}}]
[null,"Forecast Stabilization Date",null,null,{"$f":"IF(E24>0,E13+(E24*30.25),\"Not Applicable\")","v":{"$error":"#DIV/0!"}}]